Cogmind - Beta 14 @@@ ROGUE MODE // 2024.10.06 @ 13:49:10 Player: Jay Result: Destroyed by Y-45 Defender with Beam Rifle Performance ------------- Evolutions (2) 1000 Regions Visited (6) 1200 Robots Destroyed (41) 205 Value Destroyed (847) 847 Prototype IDs (5) 100 Alien Tech Used (0) 0 Bonus (631) 631 TOTAL SCORE: 3983 Bonus ------- High Alert Combat Kills 109 Follower Combat Kills 522 Cogmind --------- Core Integrity 0/550 Matter 73/300 Energy 99/100 System Corruption 2% Temperature Cool (9) Movement Core (50) Location -8/Storage Parts ------- > --- POWER (1) -------- (None) > --- PROPULSION (5) --- (None) > --- UTILITY (3) ------ Signal Interpreter > --- WEAPON (2) ------- (None) > --- INVENTORY (5) ---- Signal Interpreter Targeting Computer Heavy Armor Plating Peak State ------------ > --- POWER ------------ Heavy Ion Engine > --- PROPULSION ------- Aluminum Leg Aluminum Leg Aluminum Leg Flight Unit Improved Flight Unit > --- UTILITY ---------- Experimental Sensor Array Signal Interpreter Improved Light Armor Plating > --- WEAPON ----------- (None) > --- INVENTORY -------- Signal Interpreter Targeting Computer Heavy Armor Plating Heavy Assault Rifle [Rating: 24] Favorites ----------- Power Light Ion Engine Engine Light Ion Engine Propulsion Flight Unit Treads Light Treads Leg Aluminum Leg Hover Unit Combat Airjet Flight Unit Flight Unit Utility Signal Interpreter Device Sensor Array Storage Small Storage Unit Processor Signal Interpreter Protection Improved Light Armor Plating Weapon Small Laser Energy Gun Small Laser Ballistic Gun Light Assault Rifle Ballistic Cannon Assault Cannon Launcher Mini Grenade Launcher Build | -11 -10 -10 -9 -9 -8 -8 ------- Run | Yrd Mat Min Mat Min Mat Sto Slots Evolved 4 | . . . 2 . 2 . Power . | . . . . . . . Propulsion 3 | . . . 2 . 1 . Utility 1 | . . . . . 1 . Weapon . | . . . . . . . Parts Attached 66 | 6 6 13 16 6 1 18 Power 9 | 1 1 2 4 . . 1 Engine 9 | 1 1 2 4 . . 1 Core . | . . . . . . . Reactor . | . . . . . . . Propulsion 28 | 2 3 7 5 2 . 9 Treads 1 | . . . . . . 1 Leg 8 | 2 1 . . . . 5 Wheel . | . . . . . . . Hover 2 | . . 2 . . . . Flight 17 | . 2 5 5 2 . 3 Utility 7 | 1 2 1 . 2 1 . Device 3 | . 1 . . 2 . . Storage 1 | 1 . . . . . . Processor 2 | . 1 1 . . . . Hackware . | . . . . . . . Protection 1 | . . . . . 1 . Artifact . | . . . . . . . Weapon 22 | 2 . 3 7 2 . 8 Energy Gun 9 | 2 . 3 3 1 . . Energy Cannon . | . . . . . . . Ballistic Gun 9 | . . . 4 1 . 4 Ballistic Cannon 3 | . . . . . . 3 Launcher 1 | . . . . . . 1 Special Weapon . | . . . . . . . Impact Weapon . | . . . . . . . Slashing Weapon . | . . . . . . . Piercing Weapon . | . . . . . . . Special Melee Weapon . | . . . . . . . Unidentified Prototypes 3 | . . . . 1 . 2 Corrupted Parts 2 | . . 1 1 . . . System Corruption 2 | . . 1 1 . . . Parts Lost 22 | . . 3 6 . . 13 Power 4 | . . 2 1 . . 1 Propulsion 10 | . . . 4 . . 6 Utility 2 | . . . . . . 2 Weapon 6 | . . 1 1 . . 4 Highest Loss Streak 6 | . . 2 6 . . 6 To Critical Strikes . | . . . . . . . Average Slot Usage (%) 79 | . 98 96 73 82 87 62 Engine 9 | . 14 12 5 11 9 6 Leg 6 | . 26 . . . . 8 Flight 24 | . 1 27 33 39 36 20 Device 9 | . 12 14 5 8 9 6 Processor 11 | . 12 14 11 11 9 9 Protection 2 | . . . . . 6 6 Energy Gun 11 | . 28 27 9 2 9 . Ballistic Gun 3 | . . . 7 9 9 . Peak Build Rating 24 | 6 7 14 11 18 22 24 Average Rating 11 | 3 6 7 8 13 19 18 On Entrance 9 | . 6 7 6 5 18 22 Naked Turns . | . . . . . . . Heaviest Build 15 | 11 12 8 13 10 13 15 Greatest Support 30 | 20 20 24 16 16 16 30 Greatest Overweight (x) 3 | . 1 1 2 . . 3 Average Overweight (x) . | . . . . . . . Largest Inventory Capacity 8 | 8 8 5 5 5 5 5 Average Capacity 5 | 6 5 5 5 5 5 5 Most Carried 5 | 2 5 5 5 5 5 5 Average Carried 4 | 1 4 4 4 4 4 4 Final Capacity 8 | 8 5 5 5 5 5 5 Final Carried 5 | 2 5 5 5 5 5 4 Class Distribution -------------------- 39% | Scavenger-Mutant 34% | Mutant 16% | Scavenger-Sprinter 9% | Commander-Mutant Dominant Class ---------------- Mutant | -10/Materials Scavenger-Mutant | -10/Mines Scavenger-Mutant | -9/Materials Scavenger-Sprinter | -9/Mines Scavenger-Sprinter | -8/Materials Scavenger-Mutant | -8/Storage Resources | -11 -10 -10 -9 -9 -8 -8 ----------- Run | Yrd Mat Min Mat Min Mat Sto Matter Collected 889 | 30 71 349 212 115 . 112 Remotely . | . . . . . . . Salvage Created 1269 | . 148 231 515 138 . 237 Parts 79 | . 15 21 25 3 . 15 Haulers Intercepted 2 | . . . 2 . . . Recyclers Shooed 2 | . . 1 1 . . . Parts Field Recycled . | . . . . . . . Retrieved Matter . | . . . . . . . Parts Self-Destructed . | . . . . . . . Prevented . | . . . . . . . Kills | -11 -10 -10 -9 -9 -8 -8 ------- Run | Yrd Mat Min Mat Min Mat Sto Combat Hostiles Destroyed 30 | . 4 11 7 1 . 7 Guns 22 | . 4 10 7 1 . . Cannons 3 | . . . . . . 3 AOE 5 | . . 1 . . . 4 Classes Destroyed 12 | . 3 4 4 . . 1 Worker 3 | . . . 3 . . . Builder 1 | . . 1 . . . . Tunneler 2 | . . 2 . . . . Hauler 2 | . . . 2 . . . Recycler 4 | . . . 2 2 . . Watcher 2 | . 2 . . . . . Swarmer 13 | . 2 6 4 1 . . Grunt 7 | . 2 . 2 . . 3 Brawler 1 | . . . . . . 1 Sentry 4 | . . . 1 . . 3 Demolisher 2 | . . 2 . . . . Assembled 3 | . . 3 . . . . Best Kill Streak 7 | . 2 4 7 1 . 4 Combat Bots Only 6 | . 2 3 6 1 . 4 Max Kills in Single Turn 2 | . 1 2 1 1 . 2 Gunslinging . | . . . . . . . Exploded 2 | . . 1 . . . 2 Melee . | . . . . . . . Uniques/NPCs Destroyed . | . . . . . . . Combat | -11 -10 -10 -9 -9 -8 -8 -------- Run | Yrd Mat Min Mat Min Mat Sto Hostile Shots Fired 286 | . 28 30 52 4 4 168 Missed 101 | . 7 8 13 4 2 67 Damage Taken 2737 | . 188 312 420 . 29 1788 Core 797 | . 45 80 109 . . 563 Absorbed by Shields . | . . . . . . . Core Remaining (%) 74 | 100 . 50 . 72 . . Volleys Fired 125 | . 21 27 33 17 1 26 Largest 2 | . 2 2 2 2 2 2 Hottest 90 | . 90 90 90 60 60 88 Shots Fired 217 | . 41 51 57 25 2 41 Gun 182 | . 41 51 57 25 2 6 Cannon 31 | . . . . . . 31 Launcher 4 | . . . . . . 4 Special . | . . . . . . . Kinetic 97 | . . . 42 17 1 37 Thermal 86 | . 41 34 2 8 1 . Explosive 4 | . . . . . . 4 Electromagnetic 30 | . . 17 13 . . . Robot Hit Streak 9 | . 9 8 8 4 1 7 Robot Miss Streak 6 | . 3 2 6 1 1 3 Penetration Max . | . . . . . . . Secondary Targets 1 | . . 1 . . . . Max Gunslinging Chain 1 | . . 1 . . . . Shots Hit Robots 125 | . 27 32 34 16 1 15 Core Hits 68 | . 10 17 18 7 . 16 Critical Kills 1 | . . . 1 . . . Critical Parts Destroyed . | . . . . . . . Critical Strikes 1 | . . . 1 . . . Destroy 1 | . . . 1 . . . Melee Attacks . | . . . . . . . Impact . | . . . . . . . Slashing . | . . . . . . . Piercing . | . . . . . . . Sneak Attacks . | . . . . . . . Combat Hostiles . | . . . . . . . Follow-up Attacks . | . . . . . . . Damage Inflicted 2270 | . 318 442 588 142 9 771 Guns 1490 | . 318 376 588 142 9 57 Cannons 176 | . . . . . . 176 Explosions 592 | . . 66 . . . 526 Melee . | . . . . . . . Ramming 12 | . . . . . . 12 Kinetic 746 | . . . 407 97 9 233 Thermal 690 | . 318 316 11 45 . . Explosive 526 | . . . . . . 526 Electromagnetic 296 | . . 126 170 . . . Impact . | . . . . . . . Slashing . | . . . . . . . Piercing . | . . . . . . . Highest Corruption 6 | . . 6 1 1 . 2 Average Corruption 1 | . . 5 1 1 . 1 Corruption Purged . | . . . . . . . Corruption Blocked . | . . . . . . . Effects 10 | . . 3 1 3 . 3 Message Errors 5 | . . 2 . 1 . 2 Matter Fused 1 | . . . . . . 1 Heat Flow Errors 1 | . . 1 . . . . Data Loss (minor) 2 | . . . . 2 . . Data Loss (major) 1 | . . . 1 . . . Overload Shots . | . . . . . . . Overflow Damage 14 | . . . . . . 14 Projectiles . | . . . . . . . Explosions 14 | . . . . . . 14 Melee . | . . . . . . . Knockbacks . | . . . . . . . Impact . | . . . . . . . Kinetic . | . . . . . . . Secondary . | . . . . . . . Self-Inflicted Damage 58 | . . . . . . 58 Shots 1 | . . . . . . 1 Rammed 3 | . . . . . . 3 Targets Rammed 4 | . . . . . . 4 Kicked 1 | . . . . . . 1 Crushed . | . . . . . . . Highest Temperature 288 | . 210 288 76 58 26 82 Average Temperature 61 | . 60 95 21 26 12 26 Received Heat Transfer 870 | . 33 . 135 . 9 693 Siege Activations . | . . . . . . . Robots Corrupted . | . . . . . . . Combat Hostiles . | . . . . . . . Parts Fried 1 | . . . 1 . . . Impact Corruptions . | . . . . . . . Robots Melted . | . . . . . . . Combat Hostiles . | . . . . . . . Parts Melted . | . . . . . . . Heat Transferred 1653 | . 819 719 15 100 . . Parts Sabotaged . | . . . . . . . Parts Stolen . | . . . . . . . Parts Stripped . | . . . . . . . Power Chain Reactions 1 | . . 1 . . . . Alert | -11 -10 -10 -9 -9 -8 -8 ------- Run | Yrd Mat Min Mat Min Mat Sto Peak Influence 946 | . 166 289 244 204 61 946 Initial 64 | . . 64 34 18 1 25 Average 230 | . 49 200 97 128 28 497 Maximum Alert Level 3 | . . 1 1 1 . 3 Low Security (%) 60 | 100 100 40 76 99 100 14 Level 1 14 | . . 59 23 . . 1 Level 2 19 | . . . . . . 66 Level 3 5 | . . . . . . 16 Level 4 . | . . . . . . . Level 5 . | . . . . . . . High Security . | . . . . . . . Max Security . | . . . . . . . Squads Dispatched 8 | . . . 1 . . 7 Investigation 3 | . . . . . . 3 Extermination . | . . . . . . . Reinforcement 3 | . . . 1 . . 2 Assault 2 | . . . . . . 2 Garrison . | . . . . . . . Intercept . | . . . . . . . Searches Triggered . | . . . . . . . Construction Impeded . | . . . . . . . Haulers Reinforced . | . . . . . . . Active Scanning Responses . | . . . . . . . Cargo Convoy Interrupts . | . . . . . . . Stealth | -11 -10 -10 -9 -9 -8 -8 --------- Run | Yrd Mat Min Mat Min Mat Sto Distress Signals 5 | . 1 . 2 . . 2 Communications Jammed . | . . . . . . . Distress Signals . | . . . . . . . Times Spotted 100 | . 10 14 11 8 2 55 Peak Tracking Total 10 | . 3 9 7 4 3 10 Tactical Retreats 17 | . . 1 1 2 . 13 Traps | -11 -10 -10 -9 -9 -8 -8 ------- Run | Yrd Mat Min Mat Min Mat Sto Traps Triggered 2 | . . . . . . 2 Indirectly . | . . . . . . . Trap Hack Attempts . | . . . . . . . Triggered . | . . . . . . . Disarmed . | . . . . . . . Reprogrammed . | . . . . . . . Reused . | . . . . . . . Traps Extracted . | . . . . . . . Installed . | . . . . . . . Triggered . | . . . . . . . Machines | -11 -10 -10 -9 -9 -8 -8 ---------- Run | Yrd Mat Min Mat Min Mat Sto Machines Disabled 2 | . . . . . . 2 Max in Single Turn 1 | . . . . . . 1 Machines Repaired . | . . . . . . . Machines Dismantled . | . . . . . . . Machines Sabotaged . | . . . . . . . Overloaded Fab Kills . | . . . . . . . Hacking | -11 -10 -10 -9 -9 -8 -8 --------- Run | Yrd Mat Min Mat Min Mat Sto Machines Accessed 15 | . 4 . 1 . 1 9 Terminals 13 | . 4 . 1 . 1 7 Fabricators . | . . . . . . . Repair Stations 1 | . . . . . . 1 Recycling Units 1 | . . . . . . 1 Scanalyzers . | . . . . . . . Garrison Access . | . . . . . . . Total Hacks 29 | . 6 . 1 . 1 21 Successful 18 | . 5 . 1 . 1 11 Failed 11 | . 1 . . . . 10 Catastrophic 1 | . . . . . . 1 Database Lockouts . | . . . . . . . Manual 2 | . . . . . . 2 Terminals 25 | . 6 . 1 . 1 17 Fabricators . | . . . . . . . Repair Stations 2 | . . . . . . 2 Recycling Units 2 | . . . . . . 2 Scanalyzers . | . . . . . . . Garrison Access . | . . . . . . . Terminal Hacks 14 | . 5 . 1 . 1 7 Prototype ID Bank 1 | . 1 . . . . . Open Door 2 | . . . . . . 2 Level Access Points 1 | . . . . . . 1 Branch Access Points 3 | . 1 . 1 . . 1 Emergency Access Points 1 | . . . . . 1 . Alert Level 2 | . . . . . . 2 Transport Status 1 | . 1 . . . . . Hauler Manifests 1 | . 1 . . . . . Zone Layout 2 | . 1 . . . . 1 Fabricator Hacks . | . . . . . . . Repair Station Hacks 2 | . . . . . . 2 Scan Component 1 | . . . . . . 1 Repair 1 | . . . . . . 1 Recycling Unit Hacks 2 | . . . . . . 2 Retrieve Components 2 | . . . . . . 2 Scanalyzer . | . . . . . . . Garrison Access Hacks . | . . . . . . . Unauthorized Hacks . | . . . . . . . Terminals . | . . . . . . . Fabricators . | . . . . . . . Repair Stations . | . . . . . . . Recycling Units . | . . . . . . . Scanalyzers . | . . . . . . . Garrison Access . | . . . . . . . Data Cores Recovered . | . . . . . . . Used . | . . . . . . . Hacking Detections 8 | . 1 . . . . 7 Full Trace Events 4 | . . . . . . 4 Feedback Events . | . . . . . . . Feedback Blocked . | . . . . . . . Robot Schematics Acquired . | . . . . . . . Robots Built . | . . . . . . . Authchips . | . . . . . . . Time . | . . . . . . . Total Robot Build Rating . | . . . . . . . Part Schematics Acquired . | . . . . . . . Parts Built . | . . . . . . . Authchips . | . . . . . . . Time . | . . . . . . . Total Part Build Rating . | . . . . . . . Parts Repaired . | . . . . . . . Time 26 | . . . . . . 26 Parts Recycled . | . . . . . . . Recycled Matter . | . . . . . . . Retrieved Matter . | . . . . . . . Retrieved Components 9 | . . . . . . 9 Parts Scanalyzed . | . . . . . . . Part Schematics Acquired . | . . . . . . . Parts Damaged . | . . . . . . . Bothacking | -11 -10 -10 -9 -9 -8 -8 ------------ Run | Yrd Mat Min Mat Min Mat Sto Used RIF Installer . | . . . . . . . Robots Hacked . | . . . . . . . Non-combat . | . . . . . . . Combat . | . . . . . . . Robot Hacks Applied . | . . . . . . . Relay Couplers Released . | . . . . . . . Fabnet Peak Effective % . | . . . . . . . Robots Rewired . | . . . . . . . Allies Hacked . | . . . . . . . Hacks Repelled . | . . . . . . . Allies | -11 -10 -10 -9 -9 -8 -8 -------- Run | Yrd Mat Min Mat Min Mat Sto Total Allies 17 | . . . . 5 . 12 Largest Group 10 | . . . . 5 3 10 Highest-Rated Group 173 | . . . . 89 63 173 Highest-Rated Ally 31 | . . . . 31 31 31 Total Orders . | . . . . . . . Ally Attacks 114 | . . . . 16 1 97 Total Damage 1509 | . . . . 202 15 1292 Kills 21 | . . . . 5 . 16 Allies Corrupted . | . . . . . . . Allies Melted . | . . . . . . . Intel | -11 -10 -10 -9 -9 -8 -8 ------- Run | Yrd Mat Min Mat Min Mat Sto Robot Analysis Total . | . . . . . . . Derelict Logs Recovered 3 | . . 2 . 1 . . Drone Launches . | . . . . . . . Drone Recoveries . | . . . . . . . Exploration | -11 -10 -10 -9 -9 -8 -8 ------------- Run | Yrd Mat Min Mat Min Mat Sto Turns Passed 2504 | 62 359 421 428 441 40 753 Spaces Moved 3347 | 46 234 769 356 951 100 891 Core 20 | 5 . . 12 . . 3 Treads 7 | . . . . . . 7 Legs 259 | 41 197 . . . . 21 Wheels . | . . . . . . . Hover 12 | . . 12 . . . . Flight 3049 | . 37 757 344 951 100 860 Fastest Speed 31 | 50 37 37 31 31 31 31 Average Speed 47 | 112 107 37 54 32 31 51 Slowest Speed 210 | 120 130 120 200 37 31 210 Overloaded Moves . | . . . . . . . Propulsion Burnouts . | . . . . . . . Robots Hopped 45 | . . 1 1 23 2 18 Cave-ins Triggered . | . . . . . . . Exploration Rate (%) 48 | 4 33 97 27 90 12 74 Regions Visited 6 Branch Regions 3 Pre-discovered Areas 2 | . . 2 . . . . Known Exits Taken 5 | . 1 1 1 1 1 . Unknown Exits Taken 1 | 1 . . . . . . Scrap Searched 5 | . . 3 . 2 . . Spaces Dug . | . . . . . . . Terrain Destroyed 33 | . . 6 . . . 27 Melee . | . . . . . . . Projectile 3 | . . . . . . 3 AOE 30 | . . 6 . . . 24 Terrain Rammed 1 | . . . . . . 1 Walls Destroyed . | . . . . . . . Machines Disabled . | . . . . . . . Actions | -11 -10 -10 -9 -9 -8 -8 --------- Run | Yrd Mat Min Mat Min Mat Sto Total 3988 | 53 299 843 528 1038 105 1122 Wait 461 | . 28 31 120 85 3 194 Move 3257 | 45 233 766 353 908 95 857 Hop 39 | . . 1 1 19 2 16 Pick Up 12 | 2 6 1 . 2 1 . Fast Attach 27 | 6 1 2 7 4 1 6 Attach 6 | . . . 4 1 . 1 Detach 3 | . . . 3 . . . Swap 33 | . 5 11 5 1 . 11 Drop 20 | . 5 4 2 1 2 6 Fire 125 | . 21 27 33 17 1 26 Melee . | . . . . . . . Ram 3 | . . . . . . 3 Kick 1 | . . . . . . 1 Crush 1 | . . . . . . 1 Escape Stasis . | . . . . . . . Rewire . | . . . . . . . Trap . | . . . . . . . Miscellaneous . | . . . . . . . Route ------- -11/Scrapyard -10/Materials -10/Mines (discovered 2 exits: *Mat x2) -9/Materials (discovered 2 exits: *Min x2) -9/Mines (discovered 2 exits: *Mat x2) -8/Materials -8/Storage (discovered 2 exits: *Fac / Rec) History --------- Turn | Location | Event 9 | -11/Scrapyard | Discovered new exit (range 16) 63 | -11/Scrapyard | Entered Materials 277 | -10/Materials | Identified exit to Mines 313 | -10/Materials | Build established: Mutant 422 | -10/Materials | Entered Mines 426 | -10/Mines | Discovered new exit (range 7) 434 | -10/Mines | Identified exit to Materials 440 | -10/Mines | Assembled infested the area 450 | -10/Mines | Learned location of Zion (-6) 457 | -10/Mines | Received a Rocket Launcher from a helpful Derelict 741 | -10/Mines | Build established: Scavenger-Mutant 748 | -10/Mines | Learned location of Mines (-9) 837 | -10/Mines | Discovered exit to Materials (range 5) 843 | -10/Mines | Entered Materials 843 | -9/Materials | Evolved 2 slots: Propulsion x2 984 | -9/Materials | Identified exit to Mines 1179 | -9/Materials | Lost 6 parts (1p4n1w) 1271 | -9/Materials | Entered Mines 1293 | -9/Mines | Discovered new exit (range 9) 1293 | -9/Mines | Found a hidden stash of uninstalled traps 1296 | -9/Mines | Identified exit to Materials 1388 | -9/Mines | Assisted by bots powering up and referring to "LRC-V3" 1404 | -9/Mines | Learned Materials garrison access intel 1452 | -9/Mines | Found a damaged Exp. Sensor Array with a note attached 1453 | -9/Mines | Found Prototype Device 1453 | -9/Mines | Identified Exp. Sensor Array 1475 | -9/Mines | A weapon hastily lodged in a ceiling crevice suddenly fell to the ground 1534 | -9/Mines | Discovered exit to Materials (range 10) 1667 | -9/Mines | Build established: Scavenger-Sprinter 1712 | -9/Mines | Entered Materials 1712 | -8/Materials | Accompanied by 3 allies 1712 | -8/Materials | Evolved 2 slots: Propulsion x1, Utility x1 1713 | -8/Materials | Loaded intel: 1 garrison access location 1717 | -8/Materials | Led the pair of lost Derelicts to an unsafe place 1739 | -8/Materials | Discovered new exit (range 5) 1752 | -8/Materials | Identified exit to Storage 1752 | -8/Materials | Entered Storage 1762 | -8/Storage | Met a pair of Derelict thieves 1827 | -8/Storage | Identified exit to Factory 1856 | -8/Storage | Assisted by bots powering up and referring to "LRC-V3" 2150 | -8/Storage | Lost 3 allies 2236 | -8/Storage | Identified exit to Recycling 2342 | -8/Storage | Lost 6 parts (1p2n2u1w) 2411 | -8/Storage | Core integrity fell below 50% 2497 | -8/Storage | Core integrity fell below 20% 2505 | -8/Storage | Destroyed by Y-45 Defender with Beam Rifle Last Messages --------------- 02443_ Imp. Flight Unit destroyed. 02445_ Y-45 Defender destroyed. 02446_ Critical hit (Burn: +37). 02448_ Y-45 Defender destroyed. 02456_ Acquired Lgt. Treads. 02460_ Penetrated by Slug. 02471_ Acquired 9 matter. 02481_ Slug penetrates Wall. 02484_ Critical hit (Burn: +37). 02487_ Slug penetrates Wall. 02498_ Assault Cannon destroyed. 02499_ Connecting with Door Terminal... 02499_ Assault Cannon destroyed. 02501_ Slammed into G-47 Trooper. 02502_ Lgt. Treads destroyed. 02502_ Slammed into G-47 Trooper. 02502_ Destabilizing: System corrupted (+1). 02503_ Penetrated by Slug. 02503_ Door Terminal disabled. 02503_ Slammed into G-47 Trooper. Map ----- +----------------------------------------------------+ | #?????###+## #???????????# #??????? | | ???????????## ##??????????? ??????? | | ????????????# #???????????? ??????? | | ????????????# #???????????? ??????? | | ????????????# #???????????? ??????? | | ???????????## ##???####+#??####??????? | | ???????????# ##### #????????????? | | ???????????# #????????????? | | ???????????# #????????????? | | ???????????# ##### #????????????? | | ???????????##+###???## ##????????????? | | ?????????????????????#% #?????????????? | | ?????????????????????#%%#?????????????? | | ?????????????????????# #?????????????? | | ?????????????????????# #?????????????? | | ?????????????????????# #####?????????? | | ?????????????????????# ##]]#?????????? | | ?????????????????????# ##]]#?????????? | | ?????????????????????# ##]]#?????????? | | ?????????????????????# ## ##????????? | | ?????????????????????# " T#????????? | | ?????????????????????#![# ##????????? | | ?????????????????????+*%#####?????????? | | ?????????????????????#%=#####?????????? | | ?????????????????????#!!#g# #"????????? | | ?????????????????????#*%[@ "?>??????? | | ?????????????????????#=*hYg "????????? | | ?????????????????????##%;####"????????? | | ????????????????????## #????????????? | | ????????????????????#T #????????????? | | ????????????????????## #????????????? | | ?????????????????????#] #????????????? | | ?????????????????????#[ #????????????? | | ?????????????????????#[ [#????????????? | | ?????????????????????#] [#????????????? | | ?????????????????????#####????????????? | | ??????????????????????????????????????? | | ??????????????????????????????????????? | | ??????????????????????????????????????? | | ??????????????????????????????????????? | | ??????????????????????????????????????? | | | | | | | | | | | | | | | | | | | +----------------------------------------------------+ Best States ------------- Heat Dissipation 31 Energy Generation 14 Energy Capacity 280 Matter Stores 300 Matter Capacity 300 Sight Range 16 Robot Scan Range 20 Terrain Scan Density 10 Armor Coverage 150 Evasion (%) 63 Targeting Accuracy 5 Recoil Reduction 1 Item Schematics ----------------- None Robot Schematics ------------------ None Fabricated ------------ Nothing Alien Tech Used ----------------- None Achievements -------------- Cya! Slippery One Challenges ------------ None Game ------ Seed PulseCentriumAxe Manual? 0 Play Time 00:33:53 Cumulative 10.6 hours Start 2024.10.06 @ 13:10:14 End 2024.10.06 @ 13:49:10 Sessions 1 Manual Loads 0 Difficulty Rogue Special Mode None Game No. 39 Rogue 39 Adventurer 0 Explorer 0 Win Type - Total 0 Types 0/0/0/0/0/0/0/0/0 Lore% 9 Gallery% 17 Achievement% 16 Wizard Run 0 Options --------- Layout 0 ASCII 0 Keyboard 1 Movement Numpad Keybinds 0 Fullscreen 1 Font 18/CogWide Map View 76x50 Zoom Use 0% Tactical HUD 1 Map Filters NONE Filters NONE Steam 1 RUN: fbe3868d-ec18-464c-9148-fbba05d785bf